fUST/lending_fUST_20250630
["ID","MTS","AMOUNT","RATE_DAILY","PERIOD"]
[368625494,1751249439225,-528.05386944,0.0001853,2]
[368625495,1751249439235,-400.45715274,0.0001853,2]
[368625496,1751249439244,-500.0,0.0001853,2]
[368625497,1751249439253,-500.0,0.0001853,2]
[368625498,1751249439263,-474.21566572,0.0001853,2]
[368625499,1751249439272,-500.0,0.0001853,2]
[368625500,1751249439281,-500.0,0.0001853,2]
[368625501,1751249439291,-515.75846656,0.0001853,2]
[368625502,1751249439300,-500.0,0.0001853,2]
[368625503,1751249439310,-501.67903455,0.0001853,2]
[368625504,1751249439319,-512.71806887,0.0001853,2]
[368625505,1751249439329,-504.1015642,0.0001853,2]
[368625506,1751249439338,-439.06288375,0.0001853,2]
[368625507,1751249439348,-1774.1,0.0001853,2]
[368625508,1751249439358,-500.0,0.0001853,2]
[368625509,1751249439367,-2001.68,0.0001853,2]
[368625510,1751249439376,-460.0,0.0001853,2]
[368625511,1751249439386,-460.0,0.0001853,2]
[368625512,1751249439397,-1794.01,0.0001853,2]
[368625513,1751249439406,-1740.73,0.0001853,2]
[368625514,1751249439416,-2713.04,0.0001853,2]
[368625515,1751249439425,-460.0,0.0001853,2]
[368625516,1751249439436,-460.0,0.0001853,2]
[368625517,1751249439445,-500.0,0.0001853,2]
[368625518,1751249439454,-460.0,0.0001853,2]
[368625519,1751249439463,-1180.16,0.0001853,2]
[368625520,1751249439473,-1180.64,0.0001853,2]
[368625521,1751249439483,-460.0,0.0001853,2]
[368625522,1751249439492,-460.0,0.0001853,2]
[368625523,1751249439501,-1180.7,0.0001853,2]
[368625524,1751249439511,-460.0,0.0001853,2]
[368625525,1751249439520,-460.0,0.0001853,2]
[368625526,1751249439530,-691.27,0.0001853,2]
[368625527,1751249439539,-460.0,0.0001853,2]
[368625528,1751249439549,-460.0,0.0001853,2]
[368625529,1751249439558,-593.91,0.0001853,2]
[368625530,1751249439568,-482.25054702,0.00018531,2]
[368625531,1751249439578,-186.87856366,0.00018531,2]
[368625532,1751249439587,-477.13,0.00018531,2]
[368625533,1751249439597,-460.0,0.00018531,2]
[368625534,1751249439607,-664.36,0.00018531,2]
[368625535,1751249439616,-460.0,0.00018531,2]
[368625536,1751249439626,-460.0,0.00018531,2]
[368625537,1751249439635,-460.0,0.00018531,2]
[368625538,1751249439645,-3416.28,0.00018531,2]
[368625539,1751249439654,-465.89,0.00018531,2]
[368625540,1751249439664,-460.0,0.00018531,2]
[368625541,1751249439677,-450.47044829,0.00018531,2]
[368625542,1751249439687,-965.28,0.00018531,2]
[368625543,1751249439696,-460.0,0.00018531,2]
[368625544,1751249439705,-460.0,0.00018531,2]
[368625545,1751249439717,-175.82999847,0.00018531,2]
[368625546,1751249439729,-763.66,0.00018531,2]
[368625547,1751249439738,-460.0,0.00018531,2]
[368625548,1751249439750,-519.14,0.00018531,2]
[368625549,1751249439760,-475.50952996,0.00018531,2]
[368625550,1751249439769,-1349.33,0.00018531,2]
[368625551,1751249439781,-543.61,0.00018531,2]
[368625552,1751249439790,-460.0,0.00018532,2]
[368625553,1751249439802,-465.32221494,0.00018532,2]
[368625554,1751249439814,-466.9968311,0.00018532,2]
[368625555,1751249439828,-466.11771805,0.00018532,2]
[368625556,1751249439838,-460.0,0.00018532,2]
[368625557,1751249439849,-460.0,0.00018532,2]
[368625558,1751249439859,-509.07,0.00018532,2]
[368625559,1751249439869,-554.46,0.00018532,2]
[368625560,1751249439878,-460.0,0.00018532,2]
[368625561,1751249439888,-460.0,0.00018532,2]
[368625562,1751249439898,-460.0,0.00018532,2]
[368625563,1751249439908,-689.25,0.00018532,2]
[368625564,1751249439917,-1045.82,0.00018532,2]
[368625566,1751249439926,-901.43,0.00018532,2]
[368625568,1751249439935,-460.0,0.00018532,2]
[368625569,1751249439944,-1364.55,0.00018532,2]
[368625571,1751249439953,-460.0,0.00018532,2]
[368625573,1751249439963,-460.0,0.00018532,2]
[368625574,1751249439972,-1118.26,0.00018532,2]
[368625575,1751249439982,-1434.69,0.00018532,2]
[368625576,1751249439991,-460.0,0.00018532,2]
[368625577,1751249440001,-633.62,0.00018532,2]
[368625578,1751249440010,-715.14,0.00018532,2]
[368625579,1751249440019,-4286.27,0.00018532,2]
[368625580,1751249440028,-467.13819658,0.00018533,2]
[368625581,1751249440038,-530.48,0.00018533,2]
[368625582,1751249440047,-469.46374903,0.00018533,2]
[368625583,1751249440057,-467.46196678,0.00018533,2]
[368625584,1751249440066,-460.0,0.00018533,2]
[368625585,1751249440077,-460.0,0.00018533,2]
[368625586,1751249440086,-460.0,0.00018533,2]
[368625587,1751249440095,-151.0,0.00018533,2]
[368625588,1751249440104,-460.0,0.00018533,2]
[368625589,1751249440114,-151.0,0.00018533,2]
[368625590,1751249440123,-151.0,0.00018533,2]
[368625591,1751249440132,-151.0,0.00018533,2]
[368625592,1751249440142,-151.555268,0.00018533,2]
[368625593,1751249440151,-206.88493,0.00018533,2]
[368625594,1751249440160,-206.88493,0.00018533,2]
[368625595,1751249440170,-478.77044246,0.00018534,2]
[368625596,1751249440179,-460.0,0.00018534,2]
[368625597,1751249440189,-151.0,0.00018534,2]
[368625598,1751249440199,-784.979987,0.00018534,2]
[368625599,1751249440209,-784.979987,0.00018534,2]
[368625600,1751249440218,-151.0,0.00018534,2]
[368625601,1751249440228,-151.0,0.00018534,2]
[368625602,1751249440238,-488.65,0.00018617,3]
[368625603,1751249440247,-352.0,0.00018627,2]
[368625604,1751249440256,-352.0,0.00018694,2]
[368625605,1751249440265,-352.0,0.00018697,2]
[368625606,1751249440276,-151.343445,0.000187,2]
[368625607,1751249440285,-151.0,0.000187,2]
[368625608,1751249440296,-151.0,0.000187,2]
[368625609,1751249440305,-583.7373523,0.000187,2]
[368625610,1751249440315,-680.83914032,0.00018707,2]
[368625611,1751249440324,-352.0,0.00018763,2]
[368625612,1751249440334,-264.795249,0.00018794,2]
[368625613,1751249440343,-151.0,0.00018796,2]
[368625614,1751249440353,-151.873953,0.00018796,2]
[368625615,1751249440362,-282.377506,0.00018796,2]
[368625616,1751249440371,-282.377506,0.00018796,2]
[368625617,1751249440380,-404.54816,0.00018796,2]
[368625618,1751249440390,-404.54816,0.00018796,2]
[368625619,1751249440399,-352.0,0.00018798,2]
[368625620,1751249440409,-932.71,0.000188,3]
[368625621,1751249440418,-1774.1,0.00018804,2]
[368625622,1751249440428,-2001.68,0.00018804,2]
[368625623,1751249440438,-460.0,0.00018804,2]
[368625624,1751249440447,-460.0,0.00018804,2]
[368625625,1751249440457,-1794.01,0.00018804,2]
[368625626,1751249440467,-1740.73,0.00018804,2]
[368625627,1751249440476,-2713.04,0.00018804,2]
[368625628,1751249440485,-460.0,0.00018804,2]
[368625629,1751249440495,-460.0,0.00018804,2]
[368625630,1751249440505,-460.0,0.00018804,2]
[368625631,1751249440514,-1180.16,0.00018804,2]
[368625632,1751249440523,-1180.64,0.00018804,2]
[368625633,1751249440532,-460.0,0.00018804,2]
[368625634,1751249440542,-460.0,0.00018804,2]
[368625635,1751249440551,-1180.7,0.00018804,2]
[368625636,1751249440561,-460.0,0.00018804,2]
[368625637,1751249440570,-460.0,0.00018804,2]
[368625638,1751249440581,-691.27,0.00018804,2]
[368625639,1751249440591,-460.0,0.00018804,2]
[368625640,1751249440602,-460.0,0.00018804,2]
[368625641,1751249440612,-593.91,0.00018804,2]
[368625642,1751249440623,-151.0,0.00018805,2]
[368625643,1751249440632,-1104.812135,0.00018805,2]
[368625644,1751249440642,-1104.812135,0.00018805,2]
[368625645,1751249440651,-477.13,0.00018805,2]
[368625646,1751249440660,-460.0,0.00018805,2]
[368625647,1751249440672,-664.36,0.00018805,2]
[368625648,1751249440681,-460.0,0.00018805,2]
[368625649,1751249440690,-30.46704464,0.00018805,2]
[368625650,1751249440869,-429.53295536,0.00018805,2]
[368625651,1751249440878,-460.0,0.00018805,2]
[368625652,1751249440888,-3416.28,0.00018805,2]
[368625653,1751249440897,-465.89,0.00018805,2]
[368625654,1751249440906,-460.0,0.00018805,2]
[368625655,1751249440916,-965.28,0.00018805,2]
[368625656,1751249440927,-460.0,0.00018805,2]
[368625657,1751249440938,-460.0,0.00018805,2]
[368625658,1751249440948,-763.66,0.00018805,2]
[368625659,1751249440958,-460.0,0.00018805,2]
[368625660,1751249440967,-519.14,0.00018805,2]
[368625661,1751249440977,-793.81544391,0.00018805,2]
[368625698,1751249442971,-555.51455609,0.00018805,2]
[368625699,1751249442982,-543.61,0.00018805,2]
[368625700,1751249442992,-467.85431364,0.00018806,2]
[368625701,1751249443001,-151.0,0.00018806,2]
[368625702,1751249443011,-151.0,0.00018806,2]
[368625703,1751249443020,-151.0,0.00018806,2]
[368625704,1751249443029,-173.72017,0.00018806,2]
[368625705,1751249443039,-173.72017,0.00018806,2]
[368625706,1751249443049,-151.0,0.00018806,2]
[368625707,1751249443058,-151.0,0.00018806,2]
[368625708,1751249443067,-233.048736,0.00018806,2]
[368625709,1751249443077,-233.048736,0.00018806,2]
[368625710,1751249443086,-151.0,0.00018806,2]
[368625711,1751249443095,-151.0,0.00018806,2]
[368625712,1751249443107,-267.482697,0.00018806,2]
[368625713,1751249443118,-460.0,0.00018806,2]
[368625714,1751249443127,-1163.80873,0.00018806,2]
[368625715,1751249443137,-1163.80873,0.00018806,2]
[368625716,1751249443146,-460.0,0.00018806,2]
[368625717,1751249443156,-223.109794,0.00018806,2]
[368625718,1751249443165,-509.07,0.00018806,2]
[368625719,1751249443175,-554.46,0.00018806,2]
[368625720,1751249443185,-151.0,0.00018806,2]
[368625721,1751249443195,-151.0,0.00018806,2]
[368625722,1751249443204,-784.979987,0.00018806,2]
[368625723,1751249443213,-784.979987,0.00018806,2]
[368625724,1751249443223,-460.0,0.00018806,2]
[368625725,1751249443232,-594.357438,0.00018806,2]
[368625726,1751249443242,-460.0,0.00018806,2]
[368625727,1751249443286,-594.357438,0.00018806,2]
[368625728,1751249443296,-1385.389206,0.00018806,2]
[368625729,1751249443305,-1385.389206,0.00018806,2]
[368625730,1751249443315,-1309.119133,0.00018806,2]
[368625731,1751249443324,-460.0,0.00018806,2]
[368625732,1751249443334,-1309.119133,0.00018806,2]
[368625733,1751249443343,-689.25,0.00018806,2]
[368625734,1751249443353,-151.0,0.00018806,2]
[368625735,1751249443363,-151.0,0.00018806,2]
[368625736,1751249443373,-404.54816,0.00018806,2]
[368625737,1751249443382,-404.54816,0.00018806,2]
[368625738,1751249443391,-151.0,0.00018806,2]
[368625739,1751249443401,-901.43,0.00018806,2]
[368625740,1751249443410,-460.0,0.00018806,2]
[368625741,1751249443419,-1364.55,0.00018806,2]
[368625742,1751249443429,-151.0,0.00018806,2]
[368625743,1751249443440,-460.0,0.00018806,2]
[368625744,1751249443450,-291.964926,0.00018806,2]
[368625745,1751249443459,-460.0,0.00018806,2]
[368625746,1751249443469,-291.964926,0.00018806,2]
[368625747,1751249443479,-1118.26,0.00018806,2]
[368625748,1751249443488,-1434.69,0.00018806,2]
[368625749,1751249443498,-399.43012499,0.00018806,2]
[368625750,1751249443507,-633.62,0.00018806,2]
[368625751,1751249443516,-151.0,0.00018806,2]
[368625752,1751249443525,-151.0,0.00018806,2]
[368625753,1751249443535,-151.0,0.00018806,2]
[368625754,1751249443545,-715.14,0.00018806,2]
[368625755,1751249443555,-151.0,0.00018806,2]
[368625756,1751249443564,-151.0,0.00018806,2]
[368625757,1751249443573,-4286.27,0.00018806,2]
[368625758,1751249443583,-206.88493,0.00018806,2]
[368625759,1751249443592,-206.88493,0.00018806,2]
[368625760,1751249443601,-206.88493,0.00018806,2]
[368625761,1751249443610,-206.88493,0.00018806,2]
[368625762,1751249443619,-151.0,0.00018807,2]
[368625763,1751249443628,-228.778105,0.00018807,2]
[368625764,1751249443638,-151.0,0.00018807,2]
[368625765,1751249443647,-269.485239,0.00018807,2]
[368625766,1751249443656,-151.0,0.00018807,2]
[368625767,1751249443666,-151.0,0.00018807,2]
[368625768,1751249443678,-242.779676,0.00018807,2]
[368625769,1751249443688,-242.779676,0.00018807,2]
[368625770,1751249443698,-151.0,0.00018807,2]
[368625771,1751249443707,-151.0,0.00018807,2]
[368625772,1751249443718,-151.0,0.00018807,2]
[368625773,1751249443728,-267.451605,0.00018807,2]
[368625774,1751249443738,-267.451605,0.00018807,2]
[368625775,1751249443747,-151.0,0.00018807,2]
[368625776,1751249443756,-252.072141,0.00018807,2]
[368625777,1751249443766,-876.292728,0.00018807,2]
[368625778,1751249443775,-876.292728,0.00018807,2]
[368625779,1751249443784,-151.548803,0.00018807,2]
[368625780,1751249443793,-1171.146441,0.00018807,2]
[368625781,1751249443803,-1171.146441,0.00018807,2]
[368625782,1751249443812,-151.979268,0.00018807,2]
[368625783,1751249443821,-173.72017,0.00018807,2]
[368625784,1751249443830,-151.0,0.00018807,2]
[368625785,1751249443840,-173.72017,0.00018807,2]
[368625786,1751249443849,-154.204294,0.00018807,2]
[368625787,1751249443859,-151.0,0.00018807,2]
[368625788,1751249443868,-151.0,0.00018807,2]
[368625789,1751249443878,-233.048736,0.00018807,2]
[368625790,1751249443887,-233.048736,0.00018807,2]
[368625791,1751249443896,-151.215374,0.00018807,2]
[368625792,1751249443905,-1104.812135,0.00018807,2]
[368625793,1751249443915,-151.0,0.00018807,2]
[368625794,1751249443924,-1104.812135,0.00018807,2]
[368625795,1751249443933,-530.48,0.00018807,2]
[368625796,1751249443943,-151.0,0.00018807,2]
[368625797,1751249443952,-1163.80873,0.00018807,2]
[368625798,1751249443961,-1163.80873,0.00018807,2]
[368625799,1751249443971,-282.377506,0.00018807,2]
[368625800,1751249443980,-282.377506,0.00018807,2]
[368625801,1751249443989,-470.59851895,0.00018807,2]
[368625802,1751249443998,-151.0,0.00018807,2]
[368625803,1751249444008,-460.0,0.00018807,2]
[368625804,1751249444017,-151.0,0.00018807,2]
[368625805,1751249444026,-784.979987,0.00018807,2]
[368625806,1751249444036,-784.979987,0.00018807,2]
[368625807,1751249444046,-594.357438,0.00018807,2]
[368625808,1751249444055,-594.357438,0.00018807,2]
[368625809,1751249444064,-1385.389206,0.00018807,2]
[368625810,1751249444074,-1385.389206,0.00018807,2]
[368625811,1751249444083,-1309.119133,0.00018807,2]
[368625812,1751249444093,-1309.119133,0.00018807,2]
[368625813,1751249444102,-151.0,0.00018807,2]
[368625814,1751249444112,-473.30322252,0.00018807,2]
[368625815,1751249444121,-151.0,0.00018807,2]
[368625816,1751249444131,-404.54816,0.00018807,2]
[368625817,1751249444141,-404.54816,0.00018807,2]
[368625818,1751249444151,-166.582486,0.00018807,2]
[368625819,1751249444160,-151.0,0.00018807,2]
[368625820,1751249444170,-291.964926,0.00018807,2]
[368625821,1751249444179,-291.964926,0.00018807,2]
[368625822,1751249444189,-460.0,0.00018807,2]
[368625823,1751249444198,-281.079587,0.00018807,2]
[368625824,1751249444208,-151.0,0.00018808,2]
[368625825,1751249444218,-151.0,0.00018808,2]
[368625826,1751249444227,-208.998848,0.00018808,2]
[368625827,1751249444237,-151.0,0.00018808,2]
[368625828,1751249444247,-151.0,0.00018808,2]
[368625829,1751249444256,-151.493721,0.00018808,2]
[368625830,1751249444265,-151.0,0.00018808,2]
[368625831,1751249444275,-151.0,0.00018808,2]
[368625832,1751249444285,-202.479217,0.00018808,2]
[368625833,1751249444295,-267.451605,0.00018808,2]
[368625834,1751249444304,-267.451605,0.00018808,2]
[368625835,1751249444313,-252.072141,0.00018808,2]
[368625836,1751249444323,-151.0,0.00018808,2]
[368625837,1751249444332,-261.228621,0.00018808,2]
[368625838,1751249444341,-261.228621,0.00018808,2]
[368625839,1751249444351,-876.292728,0.00018808,2]
[368625840,1751249444360,-876.292728,0.00018808,2]
[368625841,1751249444369,-460.0,0.00018808,2]
[368625842,1751249444379,-151.420883,0.00018808,2]
[368625843,1751249444388,-282.377506,0.00018808,2]
[368625844,1751249444397,-282.377506,0.00018808,2]
[368625845,1751249444406,-151.0,0.00018808,2]
[368625846,1751249444416,-151.0,0.00018808,2]
[368625847,1751249444425,-206.88493,0.00018808,2]
[368625848,1751249444434,-206.88493,0.00018808,2]
[368625849,1751249444444,-151.0,0.00018809,2]
[368625850,1751249444453,-151.0,0.00018809,2]
[368625851,1751249444463,-151.0,0.00018809,2]
[368625852,1751249444472,-151.0,0.00018809,2]
[368625853,1751249444480,-240.390604,0.00018809,2]
[368625854,1751249444490,-240.390604,0.00018809,2]
[368625855,1751249444499,-151.0,0.00018809,2]
[368625856,1751249444508,-151.382408,0.00018809,2]
[368625857,1751249444517,-151.0,0.00018809,2]
[368625858,1751249444526,-151.0,0.00018809,2]
[368625859,1751249444535,-485.46637,0.00018809,2]
[368625860,1751249444546,-485.46637,0.00018809,2]
[368625861,1751249444555,-151.0,0.00018809,2]
[368625862,1751249444564,-151.0,0.00018809,2]
[368625863,1751249444574,-206.148214,0.00018809,2]
[368625864,1751249444584,-206.148214,0.00018809,2]
[368625865,1751249444593,-151.0,0.00018809,2]
[368625866,1751249444602,-151.0,0.00018809,2]
[368625867,1751249444611,-242.779676,0.00018809,2]
[368625868,1751249444620,-242.779676,0.00018809,2]
[368625869,1751249444630,-1171.146441,0.00018809,2]
[368625870,1751249444640,-1171.146441,0.00018809,2]
[368625871,1751249444650,-151.0,0.00018809,2]
[368625872,1751249444659,-1104.812135,0.00018809,2]
[368625873,1751249444672,-1104.812135,0.00018809,2]
[368625874,1751249444682,-151.0,0.0001881,2]
[368625875,1751249444691,-151.0,0.0001881,2]
[368625876,1751249444701,-280.715135,0.0001881,2]
[368625877,1751249444711,-151.0,0.0001881,2]
[368625878,1751249444721,-280.715135,0.0001881,2]
[368625879,1751249444730,-151.0,0.0001881,2]
[368625880,1751249444740,-151.0,0.0001881,2]
[368625881,1751249444749,-151.0,0.0001881,2]
[368625882,1751249444759,-151.0,0.0001881,2]
[368625883,1751249444768,-151.0,0.0001881,2]
[368625884,1751249444778,-151.0,0.0001881,2]
[368625885,1751249444787,-261.228621,0.0001881,2]
[368625886,1751249444797,-261.228621,0.0001881,2]
[368625887,1751249444806,-173.72017,0.0001881,2]
[368625888,1751249444816,-173.72017,0.0001881,2]
[368625889,1751249444826,-151.0,0.0001881,2]
[368625890,1751249444836,-151.0,0.0001881,2]
[368625891,1751249444846,-233.048736,0.0001881,2]
[368625892,1751249444855,-233.048736,0.0001881,2]
[368625893,1751249444865,-151.0,0.0001881,2]
[368625894,1751249444875,-1163.80873,0.0001881,2]
[368625895,1751249444884,-1163.80873,0.0001881,2]
[368625896,1751249444894,-784.979987,0.0001881,2]
[368625897,1751249444903,-784.979987,0.0001881,2]
[368625898,1751249444913,-594.357438,0.0001881,2]
[368625899,1751249444922,-594.357438,0.0001881,2]
[368625900,1751249444931,-1385.389206,0.0001881,2]
[368625901,1751249444941,-1385.389206,0.0001881,2]
[368625902,1751249444950,-1309.119133,0.0001881,2]
[368625903,1751249444960,-1309.119133,0.0001881,2]
[368625904,1751249444970,-151.0,0.0001881,2]
[368625905,1751249444980,-291.964926,0.0001881,2]
[368625906,1751249444989,-291.964926,0.0001881,2]
[368625907,1751249444999,-151.0,0.00018811,2]
[368625908,1751249445008,-151.0,0.00018811,2]
[368625909,1751249445018,-151.0,0.00018812,2]
[368625910,1751249445029,-151.0,0.00018812,2]
[368625911,1751249445038,-151.0,0.00018812,2]
[368625912,1751249445049,-151.0,0.00018812,2]
[368625913,1751249445059,-485.46637,0.00018812,2]
[368625914,1751249445068,-485.46637,0.00018812,2]
[368625915,1751249445078,-151.0,0.00018812,2]
[368625916,1751249445088,-151.0,0.00018812,2]
[368625917,1751249445097,-206.148214,0.00018812,2]
[368625918,1751249445106,-206.148214,0.00018812,2]
[368625919,1751249445116,-151.0,0.00018812,2]
[368625920,1751249445125,-221.580611,0.00018812,2]
[368625921,1751249445135,-818.0,0.00018859,2]
[368625922,1751249445144,-151.0,0.00018859,2]
[368625923,1751249445153,-289.03891,0.00018859,2]
[368625924,1751249445163,-1099.0,0.00018863,2]
[368625925,1751249445173,-151.0,0.000189,2]
[368625926,1751249445182,-267.451605,0.000189,2]
[368625927,1751249445192,-267.451605,0.000189,2]
[368625928,1751249445201,-252.072141,0.000189,2]
[368625929,1751249445210,-876.292728,0.000189,2]
[368625930,1751249445220,-876.292728,0.000189,2]
[368625931,1751249445229,-282.377506,0.000189,2]
[368625932,1751249445240,-282.377506,0.000189,2]
[368625933,1751249445249,-404.54816,0.000189,2]
[368625934,1751249445258,-404.54816,0.000189,2]
[368625935,1751249445268,-151.0,0.000189,2]
[368625936,1751249445278,-205.732377,0.000189,2]
[368625937,1751249445288,-206.88493,0.000189,2]
[368625938,1751249445297,-206.88493,0.000189,2]
[368625939,1751249445306,-4591.45264273,0.000189,2]
[368625940,1751249445316,-818.0,0.00018928,2]
[368625941,1751249445325,-217.861304,0.00018968,2]
[368625942,1751249445334,-151.0,0.00018968,2]
[368625943,1751249445344,-206.88493,0.00018969,2]
[368625944,1751249445353,-206.88493,0.00018969,2]
[368625945,1751249445362,-818.0,0.00018969,2]
[368625946,1751249445372,-282.377506,0.00018979,2]
[368625947,1751249445382,-282.377506,0.00018979,2]
[368625948,1751249445391,-151.0,0.00018979,2]
[368625949,1751249445401,-784.979987,0.00018979,2]
[368625950,1751249445410,-784.979987,0.00018979,2]
[368625951,1751249445420,-151.0,0.00018979,2]
[368625952,1751249445430,-151.0,0.0001898,2]
[368625953,1751249445440,-173.72017,0.0001898,2]
[368625954,1751249445450,-173.72017,0.0001898,2]
[368625955,1751249445459,-151.0,0.0001898,2]
[368625956,1751249445470,-151.0,0.0001898,2]
[368625957,1751249445480,-1104.812135,0.0001898,2]
[368625958,1751249445490,-1104.812135,0.0001898,2]
[368625959,1751249445500,-952.60135798,0.0001898,2]
[368625960,1751249445832,-211.20737202,0.0001898,2]
[368625961,1751249445842,-305.74894182,0.0001898,2]
[368625965,1751249772275,260.622153,0.00013699,2]
[368625967,1751249817576,5180.0,0.00018,2]
[368625968,1751250116130,17697.3204128,0.00017256,2]
[368625976,1751250415204,-152.84605395,0.000181,4]
[368625977,1751250429056,163.0,0.00018,3]
[368625978,1751250445529,163.0,0.00018,3]
[368625979,1751250454317,163.0,0.00018,3]
[368625980,1751250463608,163.0,0.00018,4]
[368625981,1751250464338,-10.15394605,0.000181,4]
[368625983,1751250510378,-206.36265964,0.00018155,2]
[368625984,1751250512631,-234.88479217,0.00018155,2]
[368625999,1751250631953,-420.0,0.00018244,2]
[368626001,1751250631962,-300.0,0.00018244,2]
[368626002,1751250631971,-300.0,0.00018244,2]
[368626003,1751250631981,-63.11313731,0.00018244,2]
[368626004,1751250631992,-650.84243801,0.00018244,2]
[368626005,1751250632004,-476.47985297,0.00018244,2]
[368626006,1751250632015,-9.56457171,0.00018244,2]
[368626007,1751250632024,-300.0,0.00018244,2]
[368626008,1751250632037,-460.0,0.00018254,2]
[368626009,1751250632046,-1552.34,0.00018254,2]
[368626010,1751250632056,-1569.76,0.00018254,2]
[368626011,1751250632065,-460.0,0.00018254,2]
[368626012,1751250632075,-460.0,0.00018254,2]
[368626013,1751250632085,-1033.06,0.00018254,2]
[368626014,1751250632094,-460.0,0.00018254,2]
[368626015,1751250632103,-504.71965073,0.00018254,2]
[368626016,1751250632114,-703.53,0.00018254,2]
[368626017,1751250632123,-467.62568133,0.00018255,2]
[368626018,1751250632134,-464.66370599,0.00018255,2]
[368626019,1751250632144,-464.03671944,0.00018255,2]
[368626020,1751250632153,-464.15086263,0.00018255,2]
[368626021,1751250632163,-464.45244705,0.00018255,2]
[368626022,1751250632173,-460.0,0.00018255,2]
[368626023,1751250632183,-67.09632112,0.00018255,2]
[368626024,1751250632201,-966.01367888,0.00018255,2]
[368626025,1751250632211,-1602.11314153,0.00018255,2]
[368626026,1751250632222,-149.35685847,0.00018255,2]
[368626027,1751250632232,-460.0,0.00018255,2]
[368626028,1751250632242,-460.0,0.00018255,2]
[368626029,1751250632251,-978.48,0.00018255,2]
[368626030,1751250632260,-460.0,0.00018255,2]
[368626031,1751250632270,-460.0,0.00018255,2]
[368626032,1751250632279,-460.0,0.00018255,2]
[368626033,1751250632288,-253.72314153,0.00018255,2]
[368626036,1751250637907,-327.58685847,0.00018255,2]
[368626037,1751250637917,-1523.14,0.00018255,2]
[368626038,1751250637927,-625.75,0.00018255,2]
[368626039,1751250637936,-460.0,0.00018255,2]
[368626040,1751250637946,-2373.91,0.00018255,2]
[368626041,1751250637955,-460.0,0.00018255,2]
[368626043,1751250637964,-1032.64,0.00018255,2]
[368626045,1751250637973,-460.0,0.00018255,2]
[368626046,1751250637982,-567.34,0.00018255,2]
[368626048,1751250637991,-460.0,0.00018255,2]
[368626050,1751250638001,-460.0,0.00018255,2]
[368626052,1751250638010,-460.0,0.00018255,2]
[368626054,1751250638021,-460.0,0.00018255,2]
[368626056,1751250638032,-519.67,0.00018255,2]
[368626058,1751250638050,-460.0,0.00018255,2]
[368626060,1751250638061,-471.20004662,0.00018256,2]
[368626062,1751250638071,-497.67325767,0.00018256,2]
[368626063,1751250638086,-473.96188062,0.00018256,2]
[368626064,1751250638097,-462.7981668,0.00018256,2]
[368626065,1751250638107,-55.11250648,0.00018256,2]
[368626066,1751250638120,-407.53598976,0.00018256,2]
[368626067,1751250638128,-461.38546487,0.00018256,2]
[368626068,1751250638137,-353.79959317,0.00018256,2]
[368626069,1751250638146,-118.79627443,0.00018256,2]
[368626073,1751250640303,-178.16576123,0.00018254,2]
[368626097,1751250643072,-811.89423877,0.00018254,2]
[368626100,1751250643082,-460.0,0.00018255,2]